[Event "Torneo Nuevo Centro. Jornada 11"]
[Site "Chess.com"]
[Date "2020.08.28"]
[Round "2"]
[White "Fernández Martín, Berta"]
[Black "Conejero Martínez, Víctor"]
[Result "0-1"]
[WhiteElo "565"]
[BlackElo "1372"]
[TimeControl "180+2"]
[EndTime "10:44:24 PDT"]
[Termination "Victoria de Camelocota20 por tiempo"]

1. e4 {[%clk 0:03:01.8]} 1... c5 {[%clk 0:02:58.3]} 2. Nf3 {[%clk 0:02:58]} 2...
Nc6 {[%clk 0:02:58.4]} 3. d4 {[%clk 0:02:45.4]} 3... cxd4 {[%clk 0:02:57.7]} 4.
Nxd4 {[%clk 0:02:42.9]} 4... e5 {[%clk 0:02:56.9]} 5. Nxc6 {[%clk 0:01:35.7]}
5... bxc6 {[%clk 0:02:54.1]} 6. Nc3 {[%clk 0:01:26.1]} 6... Bb4 {[%clk
0:02:51.8]} 7. a3 {[%clk 0:01:21.1]} 7... Bc5 {[%clk 0:02:50.9]} 8. Bc4 {[%clk
0:01:08.6]} 8... Nf6 {[%clk 0:02:48.6]} 9. Be3 {[%clk 0:00:40.3]} 9... Bxe3
{[%clk 0:02:45.5]} 10. fxe3 {[%clk 0:00:40.7]} 10... O-O {[%clk 0:02:39.1]} 11.
O-O {[%clk 0:00:33.4]} 11... Ng4 {[%clk 0:02:39]} 12. Qd2 {[%clk 0:00:17.3]}
12... Qg5 {[%clk 0:02:38.1]} 13. Rae1 {[%clk 0:00:14.8]} 13... Qh6 {[%clk
0:02:36.5]} 14. h3 {[%clk 0:00:09.8]} 14... Nf6 {[%clk 0:02:36.4]} 0

[Event "Torneo Nuevo Centro. Jornada 11"]
[Site "Chess.com"]
[Date "2020.08.28"]
[Round "2"]
[White "Donate Peris, Jose Manuel"]
[Black "Hernández Tomás, Efrén"]
[Result "0-1"]
[WhiteElo "1527"]
[BlackElo "1112"]
[TimeControl "180+2"]
[EndTime "10:45:03 PDT"]
[Termination "Victoria de EfrenHT10 por abandono"]

1. d4 {[%clk 0:03:01.9]} 1... d5 {[%clk 0:03:00.3]} 2. c4 {[%clk 0:03:01.3]}
2... c5 {[%clk 0:03:00.4]} 3. dxc5 {[%clk 0:02:58.5]} 3... e6 {[%clk 0:02:57.4]}
4. cxd5 {[%clk 0:02:58.1]} 4... exd5 {[%clk 0:02:56.5]} 5. e4 {[%clk 0:02:49.1]}
5... Bxc5 {[%clk 0:02:50.6]} 6. exd5 {[%clk 0:02:45.2]} 6... Qf6 {[%clk
0:02:46.7]} 7. Nf3 {[%clk 0:02:42.1]} 7... Qb6 {[%clk 0:02:43.6]} 8. Qe2+ {[%clk
0:02:26.4]} 8... Ne7 {[%clk 0:02:39.8]} 9. Nc3 {[%clk 0:02:23.8]} 9... Bb4
{[%clk 0:02:40.1]} 10. Bd2 {[%clk 0:02:19]} 10... Bg4 {[%clk 0:02:32]} 11. h3
{[%clk 0:02:16.5]} 11... Bxf3 {[%clk 0:02:32.9]} 12. Qxf3 {[%clk 0:02:14.8]}
12... O-O {[%clk 0:02:31.9]} 13. Bd3 {[%clk 0:02:06.7]} 13... Re8 {[%clk
0:02:23]} 14. O-O {[%clk 0:02:05.8]} 14... Bxc3 {[%clk 0:02:17.1]} 15. Bxc3
{[%clk 0:02:04.7]} 15... Qc5 {[%clk 0:02:10.4]} 16. Rac1 {[%clk 0:01:59.8]}
16... Nxd5 {[%clk 0:02:07.3]} 17. Qf5 {[%clk 0:01:54.5]} 17... g6 {[%clk
0:01:55.7]} 18. Qg5 {[%clk 0:01:49.1]} 18... Nxc3 {[%clk 0:01:54.6]} 19. Rxc3
{[%clk 0:01:47.9]} 19... Qxg5 {[%clk 0:01:54.7]} 20. Rfc1 {[%clk 0:01:39.3]}
20... Nc6 {[%clk 0:01:51.5]} 21. Be4 {[%clk 0:01:29.7]} 21... Rxe4 {[%clk
0:01:50.6]} 22. Rc5 {[%clk 0:01:19]} 22... Re5 {[%clk 0:01:47.6]} 23. R5c3
{[%clk 0:01:16.1]} 23... Rae8 {[%clk 0:01:46.4]} 24. Kf1 {[%clk 0:01:11.1]}
24... Qd2 {[%clk 0:01:40.6]} 0

[Event "Torneo Nuevo Centro. Jornada 11"]
[Site "Chess.com"]
[Date "2020.08.28"]
[Round "2"]
[White "Casado Andreu, David"]
[Black "Aguado, Pablo Luis"]
[Result "0-1"]
[WhiteElo "1569"]
[BlackElo "1933"]
[TimeControl "180+2"]
[EndTime "10:45:09 PDT"]
[Termination "Victoria de PLAD_2006 por jaque mate"]

1. e4 {[%clk 0:03:01.9]} 1... e5 {[%clk 0:02:59.1]} 2. Nf3 {[%clk 0:03:00.4]}
2... Nf6 {[%clk 0:02:59.7]} 3. Nxe5 {[%clk 0:03:00.2]} 3... d6 {[%clk
0:03:00.4]} 4. Nf3 {[%clk 0:02:59.3]} 4... Nxe4 {[%clk 0:03:01.2]} 5. d4 {[%clk
0:02:58.7]} 5... d5 {[%clk 0:03:01.8]} 6. Bd3 {[%clk 0:02:57.2]} 6... Bf5 {[%clk
0:03:01.9]} 7. O-O {[%clk 0:02:47.1]} 7... Be7 {[%clk 0:02:46.6]} 8. Re1 {[%clk
0:02:43.2]} 8... O-O {[%clk 0:02:45.6]} 9. c4 {[%clk 0:02:39.9]} 9... Nc6 {[%clk
0:02:46.2]} 10. cxd5 {[%clk 0:02:40.1]} 10... Qxd5 {[%clk 0:02:46.8]} 11. Bxe4
{[%clk 0:01:56.8]} 11... Bxe4 {[%clk 0:02:48.7]} 12. Nc3 {[%clk 0:01:57.7]}
12... Bxf3 {[%clk 0:02:49.1]} 13. Nxd5 {[%clk 0:01:52.4]} 13... Bxd1 {[%clk
0:02:43.1]} 14. Nxe7+ {[%clk 0:01:51.9]} 14... Nxe7 {[%clk 0:02:43.5]} 15. Rxd1
{[%clk 0:01:52.5]} 15... Nd5 {[%clk 0:02:43.8]} 16. a3 {[%clk 0:01:46]} 16... c6
{[%clk 0:02:44.3]} 17. Bd2 {[%clk 0:01:42.9]} 17... Rfe8 {[%clk 0:02:45]} 18.
Re1 {[%clk 0:01:40.9]} 18... f6 {[%clk 0:02:43.5]} 19. h3 {[%clk 0:01:35.6]}
19... Kf7 {[%clk 0:02:39]} 20. Rac1 {[%clk 0:01:29.9]} 20... h5 {[%clk
0:02:29.6]} 21. f3 {[%clk 0:01:25.9]} 21... g5 {[%clk 0:02:26.5]} 22. Kf2 {[%clk
0:01:00.6]} 22... Kg6 {[%clk 0:02:25.7]} 23. Rc5 {[%clk 0:00:54.1]} 23... Rxe1
{[%clk 0:02:20.7]} 24. Bxe1 {[%clk 0:00:54.6]} 24... Re8 {[%clk 0:02:20.9]} 25.
Bd2 {[%clk 0:00:56]} 25... h4 {[%clk 0:02:17.8]} 26. g4 {[%clk 0:00:53.7]} 26...
hxg3+ {[%clk 0:02:16.9]} 27. Kxg3 {[%clk 0:00:55.6]} 27... Re2 {[%clk
0:02:17.6]} 28. Bc3 {[%clk 0:00:51.3]} 28... Nf4 {[%clk 0:02:13.2]} 29. Kg4
{[%clk 0:00:42.5]} 29... Rg2# {[%clk 0:02:11.8]} 0

[Event "Torneo Nuevo Centro. Jornada 11"]
[Site "Chess.com"]
[Date "2020.08.28"]
[Round "2"]
[White "Más Ripoll, Vicente"]
[Black "Soliva Ruiz, Ramon"]
[Result "0-1"]
[WhiteElo "1068"]
[BlackElo "1522"]
[TimeControl "180+2"]
[EndTime "10:45:12 PDT"]
[Termination "Victoria de rasoru por abandono"]

1. e4 {[%clk 0:03:01.9]} 1... c5 {[%clk 0:02:59.9]} 2. Nf3 {[%clk 0:03:02]} 2...
e6 {[%clk 0:02:59.3]} 3. d4 {[%clk 0:03:01.2]} 3... cxd4 {[%clk 0:02:59.6]} 4.
Nxd4 {[%clk 0:03:01.2]} 4... a6 {[%clk 0:02:58.7]} 5. Bd3 {[%clk 0:02:57.9]}
5... Nc6 {[%clk 0:02:57.9]} 6. Nxc6 {[%clk 0:02:58]} 6... bxc6 {[%clk
0:02:57.5]} 7. O-O {[%clk 0:02:54.7]} 7... Qc7 {[%clk 0:02:56.2]} 8. f4 {[%clk
0:02:54.9]} 8... d5 {[%clk 0:02:45.3]} 9. e5 {[%clk 0:02:52.6]} 9... c5 {[%clk
0:02:36.6]} 10. Qg4 {[%clk 0:02:45.2]} 10... c4 {[%clk 0:02:31.7]} 11. Be2
{[%clk 0:02:39.7]} 11... Nh6 {[%clk 0:02:29.5]} 12. Qf3 {[%clk 0:02:29.1]} 12...
Nf5 {[%clk 0:02:27.4]} 13. c3 {[%clk 0:02:17.8]} 13... Rb8 {[%clk 0:02:19.8]}
14. Qh3 {[%clk 0:01:42.2]} 14... Qb6+ {[%clk 0:01:39.7]} 15. Kh1 {[%clk
0:01:36.6]} 15... Bc5 {[%clk 0:01:40.5]} 16. g4 {[%clk 0:01:27.1]} 16... Ne3
{[%clk 0:01:33.9]} 17. Bxe3 {[%clk 0:01:24.9]} 17... Bxe3 {[%clk 0:01:34.4]} 18.
Rf3 {[%clk 0:01:07.7]} 18... Bc1 {[%clk 0:01:23.8]} 19. Qf1 {[%clk 0:00:50.7]}
19... Bxb2 {[%clk 0:01:23.8]} 0

[Event "Torneo Nuevo Centro. Jornada 11"]
[Site "Chess.com"]
[Date "2020.08.28"]
[Round "2"]
[White "Vidarte Morales, Arturo"]
[Black "Muñoz Pantoja, Miguel"]
[Result "0-1"]
[WhiteElo "2204"]
[BlackElo "1772"]
[TimeControl "180+2"]
[EndTime "10:45:32 PDT"]
[Termination "Victoria de Indalsa por abandono"]

1. c4 {[%clk 0:03:01.9]} 1... c5 {[%clk 0:02:54.4]} 2. Nf3 {[%clk 0:03:01.1]}
2... g6 {[%clk 0:02:55.6]} 3. Nc3 {[%clk 0:03:02]} 3... Bg7 {[%clk 0:02:57.1]}
4. d4 {[%clk 0:03:01.8]} 4... Nc6 {[%clk 0:02:57.9]} 5. d5 {[%clk 0:03:01.9]}
5... Nd4 {[%clk 0:02:59.2]} 6. e4 {[%clk 0:03:01.4]} 6... d6 {[%clk 0:02:59]} 7.
h3 {[%clk 0:02:54.8]} 7... e5 {[%clk 0:02:56.8]} 8. dxe6 {[%clk 0:02:46.7]} 8...
fxe6 {[%clk 0:02:55.1]} 9. Bd3 {[%clk 0:02:46.2]} 9... Ne7 {[%clk 0:02:54.6]}
10. Nxd4 {[%clk 0:02:41.4]} 10... cxd4 {[%clk 0:02:51.8]} 11. Nb5 {[%clk
0:02:41.6]} 11... a6 {[%clk 0:02:49.8]} 12. Na3 {[%clk 0:02:42]} 12... O-O
{[%clk 0:02:44.7]} 13. O-O {[%clk 0:02:43.1]} 13... e5 {[%clk 0:02:43.8]} 14.
Bg5 {[%clk 0:02:40.9]} 14... h6 {[%clk 0:02:43.6]} 15. Bd2 {[%clk 0:02:36.5]}
15... g5 {[%clk 0:02:39.9]} 16. Rc1 {[%clk 0:02:33.5]} 16... b6 {[%clk
0:02:38.1]} 17. b4 {[%clk 0:02:33.2]} 17... Be6 {[%clk 0:02:32.6]} 18. c5 {[%clk
0:02:31.8]} 18... dxc5 {[%clk 0:02:22.6]} 19. bxc5 {[%clk 0:02:29.5]} 19... b5
{[%clk 0:02:23.8]} 20. Qc2 {[%clk 0:02:17.6]} 20... Rc8 {[%clk 0:02:22.9]} 21.
Qb2 {[%clk 0:02:09.6]} 21... Qd7 {[%clk 0:02:08.5]} 22. Nb1 {[%clk 0:02:02.8]}
22... Ng6 {[%clk 0:01:48]} 23. a4 {[%clk 0:01:57.1]} 23... Bxh3 {[%clk
0:01:08.2]} 24. c6 {[%clk 0:01:56.2]} 24... Qg4 {[%clk 0:01:08.1]} 25. g3 {[%clk
0:01:54.1]} 25... Qf3 {[%clk 0:01:07.3]} 0

[Event "Torneo Nuevo Centro. Jornada 11"]
[Site "Chess.com"]
[Date "2020.08.28"]
[Round "2"]
[White "Grigorev, Artur "]
[Black "Marques Montolio, Luis"]
[Result "0-1"]
[WhiteElo "921"]
[BlackElo "1474"]
[TimeControl "180+2"]
[EndTime "10:45:32 PDT"]
[Termination "Victoria de ateneomaritimo por tiempo"]

1. e4 {[%clk 0:00:50.1]} 1... d5 {[%clk 0:02:01.5]} 2. d3 {[%clk 0:00:46.5]}
2... dxe4 {[%clk 0:02:01.5]} 3. dxe4 {[%clk 0:00:47.2]} 3... Qxd1+ {[%clk
0:02:03.4]} 4. Kxd1 {[%clk 0:00:47.7]} 4... Bg4+ {[%clk 0:02:03.5]} 5. f3 {[%clk
0:00:47]} 5... Bh5 {[%clk 0:02:04.3]} 6. Bc4 {[%clk 0:00:46.2]} 6... e6 {[%clk
0:02:04.4]} 7. Nc3 {[%clk 0:00:45.2]} 7... c6 {[%clk 0:02:04]} 8. Bf4 {[%clk
0:00:42.9]} 8... Nd7 {[%clk 0:01:57.4]} 9. Ke2 {[%clk 0:00:38.9]} 9... h6 {[%clk
0:01:58.3]} 10. Kf2 {[%clk 0:00:39]} 10... Bc5+ {[%clk 0:01:58]} 11. Be3 {[%clk
0:00:37.5]} 11... Bxe3+ {[%clk 0:01:55.3]} 12. Kxe3 {[%clk 0:00:38.1]} 12... Ke7
{[%clk 0:01:51.9]} 13. Rd1 {[%clk 0:00:37.3]} 13... Nb6 {[%clk 0:01:52.1]} 14.
b3 {[%clk 0:00:31.6]} 14... Bg6 {[%clk 0:01:51.4]} 15. Nge2 {[%clk 0:00:29.1]}
15... f6 {[%clk 0:01:50.4]} 16. Nf4 {[%clk 0:00:28.9]} 16... Nxc4+ {[%clk
0:01:51.1]} 17. bxc4 {[%clk 0:00:28.6]} 17... Bf7 {[%clk 0:01:52.1]} 18. e5
{[%clk 0:00:19.9]} 18... fxe5 {[%clk 0:01:48.1]} 0

[Event "Torneo Nuevo Centro. Jornada 11"]
[Site "Chess.com"]
[Date "2020.08.28"]
[Round "2"]
[White "Sos Andreu, Eric"]
[Black "Montesinos Diaz, Luis"]
[Result "1-0"]
[WhiteElo "2520"]
[BlackElo "1889"]
[TimeControl "180+2"]
[EndTime "10:45:51 PDT"]
[Termination "Victoria de ericovski por jaque mate"]

1. d4 {[%clk 0:02:59.3]} 1... d5 {[%clk 0:02:59.5]} 2. c4 {[%clk 0:03:00.1]}
2... dxc4 {[%clk 0:03:00.9]} 3. e3 {[%clk 0:02:58.7]} 3... Nf6 {[%clk
0:02:50.7]} 4. Bxc4 {[%clk 0:02:59.5]} 4... e6 {[%clk 0:02:49.2]} 5. Nf3 {[%clk
0:03:00.2]} 5... a6 {[%clk 0:02:50.4]} 6. O-O {[%clk 0:02:56.4]} 6... b5 {[%clk
0:02:51.3]} 7. Be2 {[%clk 0:02:56.6]} 7... Bb7 {[%clk 0:02:47.1]} 8. a4 {[%clk
0:02:56.1]} 8... b4 {[%clk 0:02:42]} 9. Nbd2 {[%clk 0:02:51.6]} 9... Nbd7 {[%clk
0:02:38.3]} 10. a5 {[%clk 0:02:48.5]} 10... c5 {[%clk 0:02:38]} 11. Nc4 {[%clk
0:02:49.6]} 11... Be7 {[%clk 0:02:28.3]} 12. b3 {[%clk 0:02:34.5]} 12... O-O
{[%clk 0:02:24.7]} 13. Bb2 {[%clk 0:02:35.2]} 13... Rc8 {[%clk 0:02:23.2]} 14.
Nce5 {[%clk 0:02:13.9]} 14... Nxe5 {[%clk 0:02:22.9]} 15. dxe5 {[%clk 0:02:06]}
15... Nd5 {[%clk 0:02:22.1]} 16. Qc2 {[%clk 0:02:02.7]} 16... Qc7 {[%clk
0:02:18.7]} 17. Bd3 {[%clk 0:01:52.6]} 17... h6 {[%clk 0:02:19.3]} 18. Rfc1
{[%clk 0:01:52.4]} 18... Qb8 {[%clk 0:02:19.3]} 19. Qe2 {[%clk 0:01:52.9]} 19...
Qa8 {[%clk 0:02:18.5]} 20. Rc4 {[%clk 0:01:49.3]} 20... Bc6 {[%clk 0:02:13.4]}
21. Rg4 {[%clk 0:01:42.4]} 21... Bb7 {[%clk 0:01:57.7]} 22. Bc2 {[%clk 0:01:24]}
22... Rfd8 {[%clk 0:01:54.9]} 23. Qd3 {[%clk 0:01:19.9]} 23... Nf6 {[%clk
0:01:44.4]} 24. Rxg7+ {[%clk 0:01:18]} 24... Kxg7 {[%clk 0:01:38.4]} 25. exf6+
{[%clk 0:01:19.2]} 25... Kf8 {[%clk 0:01:36.9]} 26. Qh7 {[%clk 0:01:15.8]} 26...
Ke8 {[%clk 0:01:25.9]} 27. Ne5 {[%clk 0:01:02.1]} 27... Rc7 {[%clk 0:01:03.4]}
28. Qxf7# {[%clk 0:01:02.4]} 1

[Event "Torneo Nuevo Centro. Jornada 11"]
[Site "Chess.com"]
[Date "2020.08.28"]
[Round "2"]
[White "Serrano Requena, Guillem"]
[Black "Perez Garcia, Jose Miguel"]
[Result "0-1"]
[WhiteElo "1315"]
[BlackElo "2045"]
[TimeControl "180+2"]
[EndTime "10:46:01 PDT"]
[Termination "Victoria de PEREZOV69 por abandono"]

1. d4 {[%clk 0:03:01.9]} 1... d5 {[%clk 0:02:53.4]} 2. Nf3 {[%clk 0:03:01.5]}
2... e6 {[%clk 0:02:54.6]} 3. c4 {[%clk 0:02:59.3]} 3... Nf6 {[%clk 0:02:55.7]}
4. cxd5 {[%clk 0:02:59.9]} 4... exd5 {[%clk 0:02:55.9]} 5. Nc3 {[%clk
0:03:00.5]} 5... Nbd7 {[%clk 0:02:56.5]} 6. Bg5 {[%clk 0:03:00.6]} 6... Be7
{[%clk 0:02:54.8]} 7. e3 {[%clk 0:03:00.9]} 7... h6 {[%clk 0:02:55.1]} 8. Bf4
{[%clk 0:02:58.5]} 8... O-O {[%clk 0:02:54.5]} 9. Nb5 {[%clk 0:02:41]} 9... c6
{[%clk 0:02:48.7]} 10. Nc7 {[%clk 0:02:35.7]} 10... Rb8 {[%clk 0:02:47.8]} 11.
Nxd5 {[%clk 0:01:59.4]} 11... Nxd5 {[%clk 0:02:38.5]} 12. Bxb8 {[%clk
0:01:59.4]} 12... Nxb8 {[%clk 0:02:40.1]} 13. Bc4 {[%clk 0:01:58.3]} 13... Bb4+
{[%clk 0:02:39.9]} 14. Nd2 {[%clk 0:01:58.8]} 14... Qa5 {[%clk 0:02:40.1]} 15.
a3 {[%clk 0:01:54.8]} 15... Bxd2+ {[%clk 0:02:40]} 16. Qxd2 {[%clk 0:01:55.7]}
16... Qxd2+ {[%clk 0:02:41.9]} 17. Kxd2 {[%clk 0:01:56.6]} 17... Nb6 {[%clk
0:02:43.8]} 18. Bd3 {[%clk 0:01:55.8]} 18... Be6 {[%clk 0:02:44.5]} 19. Rac1
{[%clk 0:01:50.6]} 19... Rd8 {[%clk 0:02:44.3]} 20. h3 {[%clk 0:01:34.2]} 20...
N8d7 {[%clk 0:02:43.9]} 21. g4 {[%clk 0:01:34.5]} 21... Nf8 {[%clk 0:02:39.5]}
22. f4 {[%clk 0:01:32.9]} 22... Re8 {[%clk 0:02:38]} 23. Rhe1 {[%clk 0:01:25.5]}
23... Nd5 {[%clk 0:02:36]} 24. Be2 {[%clk 0:00:56.9]} 24... Nf6 {[%clk
0:02:28.2]} 25. Bf3 {[%clk 0:00:56.2]} 25... Bd5 {[%clk 0:02:27.9]} 26. Bxd5
{[%clk 0:00:50]} 26... Nxd5 {[%clk 0:02:29.8]} 27. h4 {[%clk 0:00:43.9]} 27...
Nd7 {[%clk 0:02:24.3]} 28. b4 {[%clk 0:00:43]} 28... a6 {[%clk 0:02:24.7]} 29.
Rb1 {[%clk 0:00:37.7]} 29... N7f6 {[%clk 0:02:25.5]} 30. g5 {[%clk 0:00:37.2]}
30... Ne4+ {[%clk 0:02:24.6]} 31. Kd3 {[%clk 0:00:31]} 31... h5 {[%clk
0:02:24.6]} 32. Rb2 {[%clk 0:00:23.5]} 32... g6 {[%clk 0:02:21.2]} 33. Rf2
{[%clk 0:00:19.4]} 33... Nxf2+ {[%clk 0:02:21.6]} 34. Ke2 {[%clk 0:00:20]} 34...
Ne4 {[%clk 0:02:23.5]} 35. Kf3 {[%clk 0:00:20.7]} 35... Nd2+ {[%clk 0:02:24.1]}
36. Ke2 {[%clk 0:00:21.6]} 36... Rxe3+ {[%clk 0:02:23.7]} 37. Kxd2 {[%clk
0:00:21.6]} 37... Rxe1 {[%clk 0:02:25.6]} 38. Kxe1 {[%clk 0:00:22.6]} 38... Nxf4
{[%clk 0:02:27.5]} 0

[Event "Torneo Nuevo Centro. Jornada 11"]
[Site "Chess.com"]
[Date "2020.08.28"]
[Round "2"]
[White "Birnoveanu, Petru"]
[Black "Ortiz Benavent, Alba"]
[Result "1-0"]
[WhiteElo "1704"]
[BlackElo "1200"]
[TimeControl "180+2"]
[EndTime "10:46:21 PDT"]
[Termination "Victoria de piculet por abandono"]

1. e4 {[%clk 0:03:01.9]} 1... e5 {[%clk 0:02:59.1]} 2. Bc4 {[%clk 0:03:00]} 2...
Nc6 {[%clk 0:02:58.5]} 3. Nf3 {[%clk 0:02:59.8]} 3... Bc5 {[%clk 0:02:53.2]} 4.
O-O {[%clk 0:02:59.2]} 4... d6 {[%clk 0:02:52.6]} 5. Nc3 {[%clk 0:02:58.6]} 5...
Nf6 {[%clk 0:02:51.5]} 6. d3 {[%clk 0:02:59.2]} 6... O-O {[%clk 0:02:51.3]} 7.
Na4 {[%clk 0:02:59.7]} 7... Bb6 {[%clk 0:02:51.4]} 8. Nxb6 {[%clk 0:03:00.3]}
8... axb6 {[%clk 0:02:51.8]} 9. a3 {[%clk 0:03:02]} 9... Re8 {[%clk 0:02:48.2]}
10. h3 {[%clk 0:02:59.5]} 10... h6 {[%clk 0:02:47.7]} 11. Nh2 {[%clk 0:02:59.4]}
11... Nh7 {[%clk 0:02:40.8]} 12. f4 {[%clk 0:02:59.4]} 12... Be6 {[%clk
0:02:30]} 13. Bxe6 {[%clk 0:02:58.2]} 13... Rxe6 {[%clk 0:02:29]} 14. f5 {[%clk
0:02:54.6]} 14... Re8 {[%clk 0:02:27.2]} 15. Be3 {[%clk 0:02:43]} 15... Ng5
{[%clk 0:02:23.8]} 16. Qh5 {[%clk 0:02:39.2]} 16... f6 {[%clk 0:02:11.4]} 17.
Bxg5 {[%clk 0:02:35.3]} 17... fxg5 {[%clk 0:02:08.9]} 18. h4 {[%clk 0:02:35.9]}
18... gxh4 {[%clk 0:02:05.2]} 19. f6 {[%clk 0:02:33.6]} 19... gxf6 {[%clk
0:01:52.9]} 20. Qxh6 {[%clk 0:02:33.6]} 20... Rf8 {[%clk 0:01:45.7]} 21. Rf5
{[%clk 0:02:31.2]} 21... Rf7 {[%clk 0:01:43.8]} 22. Rh5 {[%clk 0:02:28.3]} 22...
Rg7 {[%clk 0:01:15.1]} 23. Rxh4 {[%clk 0:02:25.6]} 23... Kf7 {[%clk 0:01:13.7]}
24. Rf1 {[%clk 0:02:16.4]} 24... Qg8 {[%clk 0:01:04]} 25. Qxf6+ {[%clk
0:02:12.9]} 25... Ke8 {[%clk 0:01:03.8]} 26. Rf2 {[%clk 0:02:06.1]} 26... Rf7
{[%clk 0:00:54.5]} 27. Qe6+ {[%clk 0:02:06]} 27... Kf8 {[%clk 0:00:49.4]} 28.
Rxf7+ {[%clk 0:02:05.2]} 28... Qxf7 {[%clk 0:00:50]} 29. Rh8+ {[%clk 0:02:04.3]}
29... Kg7 {[%clk 0:00:47]} 30. Rh7+ {[%clk 0:02:04.7]} 30... Kxh7 {[%clk
0:00:45.9]} 31. Qxf7+ {[%clk 0:02:05.4]} 31... Kh6 {[%clk 0:00:38.4]} 32. Qxc7
{[%clk 0:02:00.9]} 32... Nd4 {[%clk 0:00:33.5]} 33. Qxd6+ {[%clk 0:01:52.8]}
33... Kh5 {[%clk 0:00:29.2]} 34. Qxe5+ {[%clk 0:01:53.3]} 34... Kh4 {[%clk
0:00:28.9]} 35. Qxd4 {[%clk 0:01:53.2]} 1

[Event "Torneo Nuevo Centro. Jornada 11"]
[Site "Chess.com"]
[Date "2020.08.28"]
[Round "2"]
[White "Gimenez Sanchis, Jose Antonio"]
[Black "Rabbani Perez, Oumaima "]
[Result "1-0"]
[WhiteElo "1404"]
[BlackElo "706"]
[TimeControl "180+2"]
[EndTime "10:46:27 PDT"]
[Termination "Victoria de migesoj por jaque mate"]

1. d4 {[%clk 0:03:01.9]} 1... d5 {[%clk 0:02:57.5]} 2. Nf3 {[%clk 0:03:02.3]}
2... e6 {[%clk 0:02:57.8]} 3. Bf4 {[%clk 0:03:03.2]} 3... Nc6 {[%clk 0:02:56.4]}
4. e3 {[%clk 0:03:03.9]} 4... Bb4+ {[%clk 0:02:49.2]} 5. c3 {[%clk 0:03:04]}
5... Bd6 {[%clk 0:02:43.9]} 6. Bxd6 {[%clk 0:03:03.2]} 6... Qxd6 {[%clk
0:02:41.3]} 7. Be2 {[%clk 0:03:04.1]} 7... Nf6 {[%clk 0:02:36.2]} 8. Nbd2 {[%clk
0:03:03.8]} 8... Ng4 {[%clk 0:02:24.6]} 9. h3 {[%clk 0:03:03.4]} 9... Nh2 {[%clk
0:02:20.5]} 10. Nxh2 {[%clk 0:03:03.5]} 10... O-O {[%clk 0:02:19.7]} 11. Nhf3
{[%clk 0:03:04]} 11... Na5 {[%clk 0:02:12.7]} 12. O-O {[%clk 0:03:03.6]} 12...
Bd7 {[%clk 0:02:07.4]} 13. c4 {[%clk 0:03:04.3]} 13... dxc4 {[%clk 0:02:05]} 14.
Nxc4 {[%clk 0:03:02.9]} 14... Qe7 {[%clk 0:01:51.4]} 15. Nxa5 {[%clk 0:03:02]}
15... Qb4 {[%clk 0:01:40.7]} 16. Nb3 {[%clk 0:02:53.2]} 16... e5 {[%clk
0:01:37.5]} 17. dxe5 {[%clk 0:02:52.6]} 17... Be6 {[%clk 0:01:38]} 18. Nfd4
{[%clk 0:02:45.6]} 18... Bxb3 {[%clk 0:01:36.7]} 19. Nxb3 {[%clk 0:02:45]} 19...
Qe7 {[%clk 0:01:26.6]} 20. Rc1 {[%clk 0:02:39.5]} 20... Qd8 {[%clk 0:01:26.8]}
21. Qxd8 {[%clk 0:02:39.1]} 21... Raxd8 {[%clk 0:01:26.7]} 22. Rfd1 {[%clk
0:02:40]} 22... Rxd1+ {[%clk 0:01:26.7]} 23. Rxd1 {[%clk 0:02:40.5]} 23... Re8
{[%clk 0:01:25.1]} 24. f4 {[%clk 0:02:40.1]} 24... Kf8 {[%clk 0:01:25.3]} 25.
Nc5 {[%clk 0:02:38.3]} 25... Ke7 {[%clk 0:01:23.7]} 26. Nxb7 {[%clk 0:02:37.5]}
26... g6 {[%clk 0:01:19.1]} 27. a4 {[%clk 0:02:36.6]} 27... Rb8 {[%clk 0:01:17]}
28. Bf3 {[%clk 0:02:35.5]} 28... Rc8 {[%clk 0:01:11.9]} 29. a5 {[%clk 0:02:36]}
29... a6 {[%clk 0:01:08.2]} 30. Nc5 {[%clk 0:02:30.4]} 30... Rd8 {[%clk
0:01:05.8]} 31. Rxd8 {[%clk 0:02:29.7]} 31... Kxd8 {[%clk 0:01:04.8]} 32. Nxa6
{[%clk 0:02:30.5]} 32... c5 {[%clk 0:01:03.5]} 33. Nxc5 {[%clk 0:02:30.8]} 33...
h6 {[%clk 0:01:01.1]} 34. b4 {[%clk 0:02:30.9]} 34... g5 {[%clk 0:01:00.9]} 35.
Kf2 {[%clk 0:02:28.2]} 35... gxf4 {[%clk 0:01:00.4]} 36. exf4 {[%clk 0:02:28.4]}
36... f6 {[%clk 0:00:59.2]} 37. exf6 {[%clk 0:02:28.1]} 37... Ke8 {[%clk
0:00:57.5]} 38. Bd5 {[%clk 0:02:26.9]} 38... Kf8 {[%clk 0:00:48.8]} 39. f7
{[%clk 0:02:25.8]} 39... Kg7 {[%clk 0:00:47.3]} 40. a6 {[%clk 0:02:25.7]} 40...
h5 {[%clk 0:00:45.3]} 41. a7 {[%clk 0:02:26.1]} 41... Kg6 {[%clk 0:00:42.8]} 42.
f8=Q {[%clk 0:02:22.8]} 42... Kh7 {[%clk 0:00:41.7]} 43. Ne6 {[%clk 0:02:15.8]}
43... Kg6 {[%clk 0:00:38.6]} 44. f5+ {[%clk 0:02:12.4]} 44... Kh7 {[%clk
0:00:38.1]} 45. Qg7# {[%clk 0:02:12.2]} 1

[Event "Torneo Nuevo Centro. Jornada 11"]
[Site "Chess.com"]
[Date "2020.08.28"]
[Round "2"]
[White "Carbonell Bofill, Carlos Eloy"]
[Black "Leal Uribe, Jhonny Alberto"]
[Result "0-1"]
[WhiteElo "1905"]
[BlackElo "2550"]
[TimeControl "180+2"]
[EndTime "10:46:38 PDT"]
[Termination "Victoria de jhonnyuribe por tiempo"]

1. d4 {[%clk 0:03:01.9]} 1... d5 {[%clk 0:03:00.5]} 2. Nf3 {[%clk 0:03:03.2]}
2... Nf6 {[%clk 0:02:59.5]} 3. e3 {[%clk 0:03:02.3]} 3... e6 {[%clk 0:02:59.2]}
4. Bd3 {[%clk 0:03:02.7]} 4... Bd6 {[%clk 0:02:58.7]} 5. Nbd2 {[%clk 0:03:03.6]}
5... c5 {[%clk 0:02:56.2]} 6. b3 {[%clk 0:02:55.2]} 6... Nc6 {[%clk 0:02:55]} 7.
O-O {[%clk 0:02:51.6]} 7... O-O {[%clk 0:02:55.2]} 8. Bb2 {[%clk 0:02:51.4]}
8... b6 {[%clk 0:02:55.9]} 9. Ne5 {[%clk 0:02:40.6]} 9... Bb7 {[%clk 0:02:52.6]}
10. f4 {[%clk 0:02:39.5]} 10... Nb4 {[%clk 0:02:47.1]} 11. Be2 {[%clk
0:02:18.4]} 11... Rc8 {[%clk 0:02:37.9]} 12. a3 {[%clk 0:02:10.7]} 12... Nc6
{[%clk 0:02:31.9]} 13. Bd3 {[%clk 0:02:01.2]} 13... Ne7 {[%clk 0:02:27.9]} 14.
Qf3 {[%clk 0:02:00.2]} 14... c4 {[%clk 0:02:14.1]} 15. bxc4 {[%clk 0:01:48.7]}
15... dxc4 {[%clk 0:02:15.7]} 16. Qxb7 {[%clk 0:01:48.5]} 16... cxd3 {[%clk
0:02:17.1]} 17. cxd3 {[%clk 0:01:42.4]} 17... Rc2 {[%clk 0:02:13.8]} 18. Bc1
{[%clk 0:01:39.1]} 18... Ned5 {[%clk 0:02:13.3]} 19. Ne4 {[%clk 0:01:28.4]}
19... Bxe5 {[%clk 0:02:07]} 20. fxe5 {[%clk 0:01:18.7]} 20... Ng4 {[%clk
0:02:01.4]} 21. Rf3 {[%clk 0:00:43.5]} 21... Qh4 {[%clk 0:01:50.9]} 22. h3
{[%clk 0:00:43.8]} 22... Qe1+ {[%clk 0:01:32.9]} 23. Rf1 {[%clk 0:00:44]} 23...
Qe2 {[%clk 0:01:34.2]} 24. Bd2 {[%clk 0:00:13.3]} 24... Ndxe3 {[%clk 0:01:05.7]}
0